fUST/lending_fUST_20250723
["ID","MTS","AMOUNT","RATE_DAILY","PERIOD"]
[374315276,1753272648575,-460.0,0.00020273,2]
[374315278,1753272648584,-552.36,0.00020273,2]
[374315280,1753272648594,-1176.7,0.00020273,2]
[374315282,1753272648605,-460.0,0.00020273,2]
[374315284,1753272648616,-460.0,0.00020273,2]
[374315286,1753272648626,-460.0,0.00020273,2]
[374315287,1753272648636,-460.0,0.00020273,2]
[374315288,1753272648645,-460.0,0.00020273,2]
[374315289,1753272648655,-1233.45,0.00020273,2]
[374315290,1753272648664,-1435.46,0.00020273,2]
[374315291,1753272648673,-460.0,0.00020273,2]
[374315292,1753272648683,-460.0,0.00020273,2]
[374315293,1753272648693,-677.42,0.00020273,2]
[374315294,1753272648703,-460.0,0.00020273,2]
[374315295,1753272648712,-3360.5,0.00020273,2]
[374315296,1753272648721,-460.0,0.00020273,2]
[374315297,1753272648730,-2827.93,0.00020273,2]
[374315298,1753272648739,-3104.36,0.00020273,2]
[374315299,1753272648748,-460.0,0.00020273,2]
[374315300,1753272648758,-460.0,0.00020273,2]
[374315301,1753272648767,-460.0,0.00020273,2]
[374315302,1753272648776,-460.0,0.00020273,2]
[374315303,1753272648785,-460.0,0.00020273,2]
[374315304,1753272648794,-460.0,0.00020273,2]
[374315305,1753272648803,-1092.94,0.00020273,2]
[374315306,1753272648813,-460.0,0.00020273,2]
[374315307,1753272648822,-1030.41,0.00020273,2]
[374315308,1753272648832,-460.0,0.00020273,2]
[374315309,1753272648841,-460.0,0.00020273,2]
[374315310,1753272648850,-460.0,0.00020273,2]
[374315311,1753272648859,-7214.65,0.00020273,2]
[374315312,1753272648869,-460.0,0.00020273,2]
[374315314,1753272648878,-460.0,0.00020273,2]
[374315316,1753272648888,-460.0,0.00020273,2]
[374315318,1753272648898,-2044.46,0.00020273,2]
[374315320,1753272648907,-2917.19,0.00020273,2]
[374315322,1753272648917,-3000.0,0.0002028,2]
[374315335,1753272649033,-500.0,0.0002028,2]
[374315337,1753272649044,-3000.0,0.0002029,2]
[374315339,1753272649054,-3000.0,0.000203,2]
[374315341,1753272649064,-3000.0,0.0002031,2]
[374315343,1753272649073,-3000.0,0.0002032,2]
[374315345,1753272649083,-6326.8,0.00020325,4]
[374315347,1753272649093,-3000.0,0.0002033,2]
[374315349,1753272649103,-3000.0,0.0002034,2]
[374315351,1753272649113,-3000.0,0.0002035,2]
[374315353,1753272649122,-3000.0,0.0002036,2]
[374315355,1753272649132,-3000.0,0.0002037,2]
[374315357,1753272649141,-3000.0,0.0002038,2]
[374315358,1753272649150,-3000.0,0.00020382,3]
[374315360,1753272649159,-3000.0,0.0002039,2]
[374315363,1753272649168,-3000.0,0.000204,2]
[374315365,1753272649178,-151.0,0.000204,3]
[374315366,1753272649187,-3000.0,0.0002041,2]
[374315368,1753272649196,-3452.49897909,0.00020414,2]
[374315371,1753272649206,-3000.0,0.0002042,2]
[374315372,1753272649215,-160.0,0.00020429,2]
[374315374,1753272649224,-3000.0,0.0002043,2]
[374315376,1753272649233,-1074.97723689,0.00020433,2]
[374315378,1753272649243,-3000.0,0.0002044,2]
[374315380,1753272649252,-6116.23401393,0.00020448,2]
[374315382,1753272649261,-3000.0,0.0002045,2]
[374315384,1753272649271,-3000.0,0.0002046,2]
[374315386,1753272649280,-3000.0,0.0002047,2]
[374315388,1753272649289,-3909.33191,0.0002048,2]
[374315390,1753272649298,-3000.0,0.00020482,3]
[374315392,1753272649309,-1000.0,0.00020521,2]
[374315394,1753272649318,-500.0,0.00020521,2]
[374315396,1753272649327,-1000.0,0.00020521,2]
[374315398,1753272649336,-460.0,0.00020547,2]
[374315400,1753272649346,-460.0,0.00020547,2]
[374315402,1753272649355,-158.27,0.00020547,2]
[374315404,1753272649366,-460.0,0.00020547,2]
[374315406,1753272649375,-460.0,0.00020547,2]
[374315408,1753272649384,-460.0,0.00020547,2]
[374315410,1753272649393,-460.0,0.00020547,2]
[374315412,1753272649402,-460.0,0.00020547,2]
[374315414,1753272649412,-1296.64,0.00020547,2]
[374315416,1753272649422,-568.99,0.00020547,2]
[374315418,1753272649431,-460.0,0.00020547,2]
[374315420,1753272649441,-460.0,0.00020547,2]
[374315421,1753272649451,-460.0,0.00020547,2]
[374315422,1753272649460,-743.52,0.00020547,2]
[374315423,1753272649469,-166.16714709,0.00020547,2]
[374315424,1753272649479,-575.88,0.00020547,2]
[374315425,1753272649488,-182.39,0.00020547,2]
[374315426,1753272649498,-518.21,0.00020547,2]
[374315427,1753272649507,-460.0,0.00020547,2]
[374315428,1753272649522,-460.0,0.00020547,2]
[374315429,1753272649531,-541.9,0.00020547,2]
[374315430,1753272649540,-460.0,0.00020547,2]
[374315431,1753272649550,-460.0,0.00020547,2]
[374315432,1753272649560,-460.0,0.00020547,2]
[374315433,1753272649569,-460.0,0.00020547,2]
[374315434,1753272649578,-460.0,0.00020547,2]
[374315435,1753272649589,-460.0,0.00020547,2]
[374315436,1753272649598,-602.28,0.00020547,2]
[374315437,1753272649609,-250.60818836,0.00020547,2]
[374315438,1753272649619,-460.0,0.00020547,2]
[374315439,1753272649628,-460.0,0.00020547,2]
[374315440,1753272649638,-465.73,0.00020547,2]
[374315441,1753272649648,-622.8,0.00020547,2]
[374315442,1753272649658,-460.0,0.00020547,2]
[374315444,1753272649667,-461.5,0.00020547,2]
[374315445,1753272649678,-460.0,0.00020547,2]
[374315447,1753272649688,-683.42,0.00020547,2]
[374315449,1753272649698,-3164.69,0.00020547,2]
[374315451,1753272649708,-2105.65,0.00020547,2]
[374315453,1753272649717,-3752.66,0.00020547,2]
[374315455,1753272649727,-460.0,0.00020547,2]
[374315457,1753272649736,-460.0,0.00020547,2]
[374315459,1753272649746,-581.42,0.00020547,2]
[374315461,1753272649755,-460.0,0.00020547,2]
[374315463,1753272649765,-460.0,0.00020547,2]
[374315465,1753272649774,-3085.48,0.00020547,2]
[374315467,1753272649783,-460.0,0.00020547,2]
[374315469,1753272649793,-540.38,0.00020547,2]
[374315471,1753272649803,-2265.8,0.00020547,2]
[374315473,1753272649814,-10746.08,0.00020547,2]
[374315475,1753272649824,-460.0,0.00020547,2]
[374315477,1753272649834,-552.36,0.00020547,2]
[374315479,1753272649843,-1176.7,0.00020547,2]
[374315481,1753272649853,-460.0,0.00020547,2]
[374315483,1753272649864,-460.0,0.00020547,2]
[374315485,1753272649873,-460.0,0.00020547,2]
[374315487,1753272649883,-460.0,0.00020547,2]
[374315489,1753272649893,-471.72102785,0.00020547,2]
[374315491,1753272649902,-1233.45,0.00020547,2]
[374315493,1753272649912,-1435.46,0.00020547,2]
[374315495,1753272649922,-460.0,0.00020547,2]
[374315497,1753272649931,-460.0,0.00020547,2]
[374315499,1753272649940,-677.42,0.00020547,2]
[374315501,1753272649950,-460.0,0.00020547,2]
[374315503,1753272649959,-3360.5,0.00020547,2]
[374315505,1753272649968,-460.0,0.00020547,2]
[374315507,1753272649977,-2827.93,0.00020547,2]
[374315509,1753272649987,-3104.36,0.00020547,2]
[374315511,1753272649996,-460.0,0.00020547,2]
[374315513,1753272650006,-460.0,0.00020547,2]
[374315515,1753272650015,-460.0,0.00020547,2]
[374315517,1753272650024,-460.0,0.00020547,2]
[374315519,1753272650033,-460.0,0.00020547,2]
[374315521,1753272650043,-460.0,0.00020547,2]
[374315523,1753272650055,-1092.94,0.00020547,2]
[374315525,1753272650065,-460.0,0.00020547,2]
[374315527,1753272650076,-1030.41,0.00020547,2]
[374315529,1753272650087,-460.0,0.00020547,2]
[374315531,1753272650099,-460.0,0.00020547,2]
[374315533,1753272650111,-7214.65,0.00020547,2]
[374315535,1753272650122,-460.0,0.00020547,2]
[374315537,1753272650134,-460.0,0.00020547,2]
[374315539,1753272650145,-460.0,0.00020547,2]
[374315540,1753272650154,-2044.46,0.00020547,2]
[374315543,1753272650166,-2917.19,0.00020547,2]
[374315545,1753272650179,-10000.0,0.00020562,3]
[374315547,1753272650191,-12622.36869388,0.0002057,3]
[374315549,1753272650202,-476.696448,0.0002057,3]
[374315551,1753272650212,-214.67886746,0.0002057,3]
[374315553,1753272650221,-160.0,0.0002057,3]
[374315555,1753272650231,-10000.0,0.00020611,3]
[374315557,1753272650241,-3452.49897909,0.00020667,2]
[374315559,1753272650251,-420.0,0.00020674,2]
[374315561,1753272650261,-160.0,0.000207,2]
[374315562,1753272650271,-476.696448,0.000207,2]
[374315564,1753272650280,-526.15909479,0.000207,2]
[374315566,1753272650290,-12622.36869388,0.000207,2]
[374315568,1753272650299,-160.0,0.000207,2]
[374315570,1753272650309,-214.67886746,0.000207,2]
[374315572,1753272650318,-231.11583447,0.000207,2]
[374315574,1753272650328,-160.0,0.000207,2]
[374315576,1753272650338,-840.06856235,0.000207,2]
[374315578,1753272650348,-215.84326551,0.000207,2]
[374315580,1753272650358,-160.0,0.000207,2]
[374315582,1753272650370,-160.0,0.00020715,2]
[374315584,1753272650379,-6670.29594355,0.00020722,2]
[374315586,1753272650388,-971.461,0.00020774,2]
[374315588,1753272650397,-178.723,0.00020774,2]
[374315590,1753272650407,-6326.8,0.00020779,4]
[374315592,1753272650416,-662.27601403,0.00020816,2]
[374315609,1753272650578,-1337.72398597,0.00020816,2]
[374315611,1753272650588,-1622.75820574,0.00020816,2]
[374315613,1753272650599,-2000.0,0.00020816,2]
[374315615,1753272650610,-309.08,0.00020821,2]
[374315617,1753272650620,-460.0,0.00020821,2]
[374315618,1753272650630,-195.74,0.00020821,2]
[374315620,1753272650639,-460.0,0.00020821,2]
[374315623,1753272650649,-460.0,0.00020821,2]
[374315625,1753272650659,-1296.64,0.00020821,2]
[374315627,1753272650668,-460.0,0.00020821,2]
[374315629,1753272650677,-460.0,0.00020821,2]
[374315630,1753272650687,-743.52,0.00020821,2]
[374315632,1753272650697,-575.88,0.00020821,2]
[374315635,1753272650706,-518.21,0.00020821,2]
[374315636,1753272650716,-460.0,0.00020821,2]
[374315638,1753272650725,-460.0,0.00020821,2]
[374315640,1753272650734,-541.9,0.00020821,2]
[374315642,1753272650743,-460.0,0.00020821,2]
[374315644,1753272650752,-460.0,0.00020821,2]
[374315646,1753272650761,-415.02,0.00020821,2]
[374315648,1753272650770,-460.0,0.00020821,2]
[374315650,1753272650779,-602.28,0.00020821,2]
[374315652,1753272650789,-460.0,0.00020821,2]
[374315654,1753272650798,-460.0,0.00020821,2]
[374315656,1753272650808,-465.73,0.00020821,2]
[374315658,1753272650817,-622.8,0.00020821,2]
[374315659,1753272650827,-460.0,0.00020821,2]
[374315660,1753272650836,-461.5,0.00020821,2]
[374315661,1753272650847,-460.0,0.00020821,2]
[374315663,1753272650856,-683.42,0.00020821,2]
[374315665,1753272650867,-3164.69,0.00020821,2]
[374315667,1753272650876,-2105.65,0.00020821,2]
[374315668,1753272650886,-3752.66,0.00020821,2]
[374315669,1753272650895,-460.0,0.00020821,2]
[374315670,1753272650904,-460.0,0.00020821,2]
[374315671,1753272650913,-581.42,0.00020821,2]
[374315672,1753272650923,-460.0,0.00020821,2]
[374315673,1753272650933,-460.0,0.00020821,2]
[374315674,1753272650942,-3085.48,0.00020821,2]
[374315675,1753272650951,-460.0,0.00020821,2]
[374315676,1753272650960,-540.38,0.00020821,2]
[374315677,1753272650969,-2265.8,0.00020821,2]
[374315678,1753272650978,-10746.08,0.00020821,2]
[374315679,1753272650988,-460.0,0.00020821,2]
[374315680,1753272650997,-552.36,0.00020821,2]
[374315681,1753272651007,-1176.7,0.00020821,2]
[374315682,1753272651017,-460.0,0.00020821,2]
[374315683,1753272651027,-385.8182389,0.00020821,2]
[374315684,1753272651037,-460.0,0.00020821,2]
[374315685,1753272651047,-460.0,0.00020821,2]
[374315686,1753272651057,-1233.45,0.00020821,2]
[374315687,1753272651066,-460.0,0.00020821,2]
[374315688,1753272651076,-1435.46,0.00020821,2]
[374315689,1753272651085,-460.0,0.00020821,2]
[374315690,1753272651095,-677.42,0.00020821,2]
[374315691,1753272651104,-460.0,0.00020821,2]
[374315692,1753272651115,-3360.5,0.00020821,2]
[374315693,1753272651125,-460.0,0.00020821,2]
[374315694,1753272651134,-2827.93,0.00020821,2]
[374315695,1753272651142,-3104.36,0.00020821,2]
[374315696,1753272651151,-242.61563436,0.00020821,2]
[374315697,1753272651267,-460.0,0.00020821,2]
[374315698,1753272651277,-460.0,0.00020821,2]
[374315699,1753272651287,-460.0,0.00020821,2]
[374315700,1753272651296,-460.0,0.00020821,2]
[374315701,1753272651306,-460.0,0.00020821,2]
[374315702,1753272651316,-1092.94,0.00020821,2]
[374315703,1753272651326,-460.0,0.00020821,2]
[374315704,1753272651335,-1030.41,0.00020821,2]
[374315705,1753272651345,-460.0,0.00020821,2]
[374315706,1753272651355,-460.0,0.00020821,2]
[374315707,1753272651366,-5354.0251843,0.00020821,2]
[374315708,1753272651379,-1860.6248157,0.00020821,2]
[374315709,1753272651388,-460.0,0.00020821,2]
[374315710,1753272651397,-460.0,0.00020821,2]
[374315711,1753272651407,-460.0,0.00020821,2]
[374315712,1753272651416,-2917.19,0.00020821,2]
[374315713,1753272651425,-203.43760413,0.00020821,2]
[374315714,1753272651437,-1841.02239587,0.00020821,2]
[374315715,1753272651446,-500.0,0.00020951,2]
[374315716,1753272651455,-260.0,0.00020977,2]
[374315717,1753272651466,-503.02000038,0.00021068,2]
[374315718,1753272651475,-1500.0,0.00021068,2]
[374315719,1753272651485,-460.0,0.00021095,2]
[374315721,1753272651495,-460.0,0.00021095,2]
[374315723,1753272651504,-1296.64,0.00021095,2]
[374315725,1753272651518,-460.0,0.00021095,2]
[374315727,1753272651527,-460.0,0.00021095,2]
[374315729,1753272651537,-743.52,0.00021095,2]
[374315731,1753272651546,-575.88,0.00021095,2]
[374315733,1753272651557,-518.21,0.00021095,2]
[374315735,1753272651566,-460.0,0.00021095,2]
[374315737,1753272651575,-460.0,0.00021095,2]
[374315739,1753272651585,-541.9,0.00021095,2]
[374315741,1753272651594,-460.0,0.00021095,2]
[374315743,1753272651604,-460.0,0.00021095,2]
[374315745,1753272651614,-460.0,0.00021095,2]
[374315747,1753272651624,-602.28,0.00021095,2]
[374315749,1753272651633,-460.0,0.00021095,2]
[374315751,1753272651642,-460.0,0.00021095,2]
[374315753,1753272651651,-465.73,0.00021095,2]
[374315754,1753272651661,-622.8,0.00021095,2]
[374315756,1753272651671,-460.0,0.00021095,2]
[374315758,1753272651681,-461.5,0.00021095,2]
[374315760,1753272651691,-460.0,0.00021095,2]
[374315763,1753272651702,-683.42,0.00021095,2]
[374315764,1753272651711,-3164.69,0.00021095,2]
[374315767,1753272651720,-2105.65,0.00021095,2]
[374315769,1753272651729,-1320.45991676,0.00021095,2]
[374315805,1753272652059,-25.52582042,0.00018967,2]
[374315815,1753272652149,-474.47417958,0.00018967,2]
[374315817,1753272652159,-500.0,0.00018967,2]
[374315819,1753272652168,-619.21553716,0.00018967,2]
[374315821,1753272652178,-500.0,0.00018967,2]
[374315823,1753272652187,-500.0,0.00018967,2]
[374315825,1753272652197,-500.0,0.00018967,2]
[374315827,1753272652206,-500.0,0.00018967,2]
[374315830,1753272652215,-500.0,0.00018967,2]
[374315832,1753272652225,-689.53220871,0.00019178,2]
[374315834,1753272652235,-2380.52,0.0002,2]
[374315836,1753272652244,-2380.52,0.00020273,2]
[374315838,1753272652253,-2380.52,0.00020547,2]
[374315840,1753272652263,-2380.52,0.00020821,2]
[374315842,1753272652271,-2432.20008324,0.00021095,2]
[374315844,1753272652281,-460.0,0.00021095,2]
[374315846,1753272652290,-460.0,0.00021095,2]
[374315848,1753272652299,-581.42,0.00021095,2]
[374315850,1753272652308,-460.0,0.00021095,2]
[374315852,1753272652317,-460.0,0.00021095,2]
[374315854,1753272652327,-3085.48,0.00021095,2]
[374315856,1753272652336,-460.0,0.00021095,2]
[374315858,1753272652346,-540.38,0.00021095,2]
[374315860,1753272652355,-2265.8,0.00021095,2]
[374315861,1753272652365,-4464.68210588,0.00021095,2]
[374315864,1753272652377,-6281.39789412,0.00021095,2]
[374315866,1753272652387,-359.72951454,0.00021095,2]
[374315868,1753272652396,-552.36,0.00021095,2]
[374315870,1753272652405,-1176.7,0.00021095,2]
[374315872,1753272652415,-460.0,0.00021095,2]
[374315874,1753272652424,-248.4666521,0.00021095,2]
[374315876,1753272652434,-460.0,0.00021095,2]
[374315878,1753272652443,-1233.45,0.00021095,2]
[374315880,1753272652452,-908.89595768,0.00021095,2]
[374316646,1753273131251,-1380.0,0.00017709,2]
[374316648,1753273236978,513.590828,0.00013699,2]
[374316650,1753273243242,712.0,0.00026027,120]
[374316651,1753273278221,150.0,0.00012885,2]
[374316652,1753273279309,150.0,0.00013499,2]
[374316653,1753273279748,150.0,0.00014113,2]
[374316654,1753273280150,150.0,0.00014726,2]
[374316655,1753273280596,150.0,0.0001534,2]
[374316656,1753273281033,150.0,0.00015953,2]
[374316657,1753273281473,150.0,0.00016567,2]
[374316658,1753273323598,-156.83,0.0001718,2]
[374316659,1753273323620,-167.17,0.00017709,2]
[374316660,1753273391877,-3420.15060996,0.00017284,2]
[374316661,1753273391900,-5.2421716,0.00017709,2]
[374316662,1753273391921,-3232.60721844,0.00017771,2]
[374316663,1753273531124,-428.71302903,0.00017976,2]
[374316672,1753273632085,-263.08380118,0.00017976,2]
[374316675,1753273652081,-108.20316979,0.00017976,2]
[374316676,1753273652103,-300.0,0.00017985,2]
[374316677,1753273652124,-1144.51930969,0.00017986,2]
[374316768,1753273747086,-300.0,0.00017985,2]
[374316769,1753273747107,-23755.48069031,0.00017986,2]
[374316858,1753273832723,-150.0,0.00018523,2]
[374316859,1753273832732,-347.73201033,0.000188,2]
[374316861,1753273832753,-256.6,0.00018858,3]
[374316863,1753273832763,-769.84,0.00018858,3]
[374316866,1753273832773,-472.0,0.00018866,2]
[374316868,1753273832784,-500.0,0.00018867,2]
[374316869,1753273832794,-500.0,0.00018867,2]
[374316870,1753273832804,-500.0,0.00018867,2]
[374316871,1753273832814,-432.99535512,0.00018867,2]
[374316872,1753273832824,-67171.31843518,0.00018868,2]
[374316873,1753273832843,-3046.15062249,0.00018868,2]
[374316910,1753273838819,-137044.99954012,0.00018868,2]
[374316911,1753273838834,-151.0,0.000189,2]
[374316912,1753273838849,-457.05509943,0.000189,2]
[374316913,1753273838862,-2917.49321936,0.00019078,2]
[374316914,1753273838882,-5329.48055953,0.00019078,2]
[374316915,1753273838896,-151.0,0.000191,2]
[374316916,1753273838911,-460.0,0.00019178,2]
[374316917,1753273838926,-460.0,0.00019178,2]
[374316918,1753273838940,-9850.76,0.00019178,2]
[374316919,1753273838959,-1357.95,0.00019178,2]
[374316920,1753273838972,-460.0,0.00019178,2]
[374316921,1753273838985,-460.0,0.00019178,2]
[374316922,1753273838996,-4334.0,0.00019178,2]
[374316923,1753273839008,-3683.06,0.00019178,2]
[374316924,1753273839020,-460.0,0.00019178,2]
[374316925,1753273839032,-460.0,0.00019178,2]
[374316926,1753273839045,-460.0,0.00019178,2]
[374316927,1753273839058,-460.0,0.00019178,2]
[374316928,1753273839071,-460.0,0.00019178,2]
[374316929,1753273839085,-460.0,0.00019178,2]
[374316930,1753273839098,-460.0,0.00019178,2]
[374316931,1753273839111,-460.0,0.00019178,2]
[374316932,1753273839124,-460.0,0.00019178,2]
[374316933,1753273839137,-460.0,0.00019178,2]
[374316934,1753273839148,-2078.02,0.00019178,2]
[374316935,1753273839161,-460.0,0.00019178,2]
[374316936,1753273839173,-460.0,0.00019178,2]
[374316937,1753273839185,-2180.38,0.00019178,2]
[374316938,1753273839199,-460.0,0.00019178,2]
[374316939,1753273839214,-460.0,0.00019178,2]
[374316940,1753273839227,-2198.41,0.00019178,2]
[374316941,1753273839239,-460.0,0.00019178,2]
[374316942,1753273839251,-460.0,0.00019178,2]
[374316943,1753273839265,-494.30199203,0.00019178,2]
[374316944,1753273839278,-460.0,0.00019178,2]
[374316945,1753273839290,-460.0,0.00019178,2]
[374316946,1753273839301,-460.0,0.00019178,2]
[374316947,1753273839313,-460.0,0.00019178,2]
[374316948,1753273839325,-460.0,0.00019178,2]
[374316949,1753273839338,-467.97556612,0.00019178,2]
[374316950,1753273839350,-174.95831635,0.00019178,2]
[374316951,1753273839368,-460.0,0.00019178,2]
[374316952,1753273839383,-460.0,0.00019178,2]
[374316953,1753273839396,-460.0,0.00019178,2]
[374316954,1753273839411,-460.0,0.00019178,2]
[374316955,1753273839425,-460.0,0.00019178,2]
[374316956,1753273839437,-7332.29,0.00019178,2]
[374316957,1753273839450,-7332.29,0.00019178,2]
[374316958,1753273839462,-460.0,0.00019178,2]
[374316959,1753273839474,-460.0,0.00019178,2]
[374316960,1753273839486,-460.0,0.00019178,2]
[374316961,1753273839498,-460.0,0.00019178,2]
[374316962,1753273839510,-460.0,0.00019178,2]
[374316963,1753273839521,-392.4689368,0.00019178,2]
[374316964,1753273839533,-460.0,0.00019178,2]
[374316965,1753273839544,-460.0,0.00019178,2]
[374316966,1753273839555,-460.0,0.00019178,2]
[374316967,1753273839567,-460.0,0.00019178,2]
[374316968,1753273839579,-460.0,0.00019178,2]
[374316969,1753273839590,-460.0,0.00019178,2]
[374316970,1753273839601,-460.0,0.00019178,2]
[374316971,1753273839612,-460.0,0.00019178,2]
[374316972,1753273839624,-460.0,0.00019178,2]
[374316973,1753273839636,-460.0,0.00019178,2]
[374316974,1753273839647,-460.0,0.00019178,2]
[374316975,1753273839660,-460.0,0.00019178,2]
[374316976,1753273839672,-460.0,0.00019178,2]
[374316977,1753273839684,-461.12187968,0.00019178,2]
[374316978,1753273839696,-460.0,0.00019178,2]
[374316979,1753273839707,-469.99801407,0.00019178,2]
[374316980,1753273839719,-460.0,0.00019178,2]
[374316981,1753273839730,-460.0,0.00019178,2]
[374316982,1753273839741,-460.0,0.00019178,2]
[374316983,1753273839753,-460.0,0.00019178,2]
[374316984,1753273839764,-460.0,0.00019178,2]
[374316985,1753273839776,-460.0,0.00019178,2]
[374316986,1753273839787,-460.0,0.00019178,2]
[374316987,1753273839798,-460.0,0.00019178,2]
[374316988,1753273839810,-556.24,0.00019178,2]
[374316989,1753273839821,-561.73,0.00019178,2]
[374316990,1753273839833,-460.0,0.00019178,2]
[374316991,1753273839844,-460.0,0.00019178,2]
[374316992,1753273839855,-460.0,0.00019178,2]
[374316993,1753273839868,-460.0,0.00019178,2]
[374316994,1753273839880,-563.15,0.00019178,2]
[374316995,1753273839891,-460.0,0.00019178,2]
[374316996,1753273839903,-460.0,0.00019178,2]
[374316997,1753273839915,-460.0,0.00019178,2]
[374316998,1753273839927,-460.0,0.00019178,2]
[374316999,1753273839938,-460.0,0.00019178,2]
[374317000,1753273839951,-460.0,0.00019178,2]
[374317001,1753273839963,-460.49969775,0.00019178,2]
[374317002,1753273839975,-460.0,0.00019178,2]
[374317003,1753273839986,-460.0,0.00019178,2]
[374317004,1753273839997,-460.0,0.00019178,2]
[374317005,1753273840009,-460.0,0.00019178,2]
[374317006,1753273840020,-257.47516588,0.00019178,2]
[374317007,1753273840032,-1260.0,0.00019178,2]
[374317008,1753273840043,-151.0,0.00019178,2]
[374317009,1753273840055,-151.0,0.00019178,2]
[374317010,1753273840067,-151.0,0.00019178,2]
[374317011,1753273840078,-500.0,0.00019178,2]
[374317012,1753273840089,-460.0,0.00019178,2]
[374317013,1753273840100,-151.0,0.00019178,2]
[374317014,1753273840111,-151.0,0.00019178,2]
[374317015,1753273840122,-275.38754775,0.00019178,2]
[374317016,1753273840135,-151.0,0.00019178,2]
[374317017,1753273840148,-151.0,0.00019178,2]
[374317018,1753273840161,-460.0,0.00019178,2]
[374317019,1753273840172,-460.0,0.00019178,2]
[374317020,1753273840182,-460.0,0.00019178,2]
[374317021,1753273840191,-460.0,0.00019178,2]
[374317022,1753273840201,-460.0,0.00019178,2]
[374317023,1753273840211,-460.0,0.00019178,2]
[374317024,1753273840220,-460.0,0.00019178,2]
[374317025,1753273840230,-460.0,0.00019178,2]
[374317026,1753273840504,-660.92,0.00019178,2]
[374317027,1753273840516,-460.0,0.00019178,2]
[374317028,1753273840526,-460.0,0.00019178,2]
[374317029,1753273840536,-460.0,0.00019178,2]
[374317030,1753273840546,-460.0,0.00019178,2]
[374317031,1753273840555,-460.0,0.00019178,2]
[374317032,1753273840565,-460.0,0.00019178,2]
[374317033,1753273840575,-460.0,0.00019178,2]
[374317034,1753273840584,-460.0,0.00019178,2]
[374317035,1753273840594,-1574.89,0.00019178,2]
[374317036,1753273840603,-460.0,0.00019178,2]
[374317037,1753273840613,-460.0,0.00019178,2]
[374317038,1753273840622,-460.0,0.00019178,2]
[374317039,1753273840632,-460.0,0.00019178,2]
[374317040,1753273840641,-532.39,0.00019178,2]
[374317041,1753273840652,-2605.37,0.00019178,2]
[374317043,1753273840661,-477.05854615,0.00019178,2]
[374317044,1753273840671,-460.0,0.00019178,2]
[374317046,1753273840681,-657.49,0.00019178,2]
[374317048,1753273840690,-460.0,0.00019178,2]
[374317050,1753273840699,-198.69371496,0.00019178,2]
[374317052,1753273840709,-500.0,0.00019178,2]
[374317054,1753273840719,-151.0,0.00019178,2]
[374317056,1753273840728,-151.0,0.00019178,2]
[374317058,1753273840738,-460.0,0.00019178,2]
[374317060,1753273840747,-315.47547491,0.00019178,2]
[374317062,1753273840757,-460.0,0.00019178,2]
[374317064,1753273840767,-460.0,0.00019178,2]
[374317066,1753273840776,-460.0,0.00019178,2]